[Event "Titled Tuesday Blitz June 20 Early 2023"]
[White "Itkis, Boris"]
[Black "Castillo Pena, Patricia Evarista"]
[WhiteFideId "1209167"]
[BlackFideId "6412106"]
[WhiteElo "2219"]
[BlackElo "1859"]
[Result "1-0"]
[Round "2"]
[TimeControl "180+2"]
[Date "2023.06.20"]
[WhiteClock "0:01:37"]
[BlackClock "0:00:04"]
[Board "249"]

1. c4 {[%clk 0:03:00]}  c6 {[%clk 0:02:58]} 2. Nf3 {[%clk 0:03:01]}  Nf6 {[%clk 0:02:57]} 3. g3 {[%clk 0:03:02]}  d5 {[%clk 0:02:57]} 4. Bg2 {[%clk 0:03:03]}  e6 {[%clk 0:02:58]} 5. O-O {[%clk 0:03:03]}  Nbd7 {[%clk 0:02:58]} 6. b3 {[%clk 0:03:03]}  Bd6 {[%clk 0:02:57]} 7. Bb2 {[%clk 0:03:04]}  O-O {[%clk 0:02:57]} 8. d4 {[%clk 0:03:04]}  Qe7 {[%clk 0:02:57]} 9. Ne5 {[%clk 0:03:04]}  c5 {[%clk 0:02:55]} 10. cxd5 {[%clk 0:03:00]}  exd5 {[%clk 0:02:54]} 11. Nxd7 {[%clk 0:03:00]}  Bxd7 {[%clk 0:02:48]} 12. dxc5 {[%clk 0:03:00]}  Bxc5 {[%clk 0:02:47]} 13. Nc3 {[%clk 0:03:01]}  Bc6 {[%clk 0:02:44]} 14. Rc1 {[%clk 0:02:59]}  Rfd8 {[%clk 0:02:40]} 15. Qc2 {[%clk 0:02:38]}  Rac8 {[%clk 0:02:38]} 16. Qb1 {[%clk 0:02:32]}  d4 {[%clk 0:02:13]} 17. Na4 {[%clk 0:02:31]}  Bxa4 {[%clk 0:02:00]} 18. bxa4 {[%clk 0:02:29]}  b6 {[%clk 0:02:00]} 19. Qd3 {[%clk 0:02:27]}  Nd5 {[%clk 0:01:40]} 20. a3 {[%clk 0:02:21]}  Nc3 {[%clk 0:01:33]} 21. e3 {[%clk 0:02:04]}  Nxa4 {[%clk 0:01:29]} 22. Bxd4 {[%clk 0:02:03]}  Bxd4 {[%clk 0:01:23]} 23. exd4 {[%clk 0:02:04]}  Rxc1 {[%clk 0:01:20]} 24. Rxc1 {[%clk 0:02:04]}  Nc5 {[%clk 0:01:05]} 25. Qe3 {[%clk 0:02:04]}  Qxe3 {[%clk 0:00:50]} 26. fxe3 {[%clk 0:02:05]}  Ne6 {[%clk 0:00:45]} 27. Rc6 {[%clk 0:02:00]}  Kf8 {[%clk 0:00:42]} 28. Kf2 {[%clk 0:01:59]}  Ke7 {[%clk 0:00:37]} 29. a4 {[%clk 0:01:59]}  Rd6 {[%clk 0:00:20]} 30. Rc8 {[%clk 0:01:51]}  Rd8 {[%clk 0:00:20]} 31. Rc3 {[%clk 0:01:50]}  h5 {[%clk 0:00:17]} 32. h4 {[%clk 0:01:48]}  Rd6 {[%clk 0:00:13]} 33. Bf3 {[%clk 0:01:49]}  g6 {[%clk 0:00:13]} 34. Ke2 {[%clk 0:01:45]}  Ng7 {[%clk 0:00:13]} 35. a5 {[%clk 0:01:39]}  bxa5 {[%clk 0:00:12]} 36. Rc5 {[%clk 0:01:39]}  Ra6 {[%clk 0:00:10]} 37. Bb7 {[%clk 0:01:39]}  Rb6 {[%clk 0:00:10]} 38. Bd5 {[%clk 0:01:40]}  a4 {[%clk 0:00:10]} 39. Ra5 {[%clk 0:01:38]}  a6 {[%clk 0:00:07]} 40. Rxa4 {[%clk 0:01:38]}  f5 {[%clk 0:00:08]} 41. Bc4 {[%clk 0:01:37]}  Ne6 {[%clk 0:00:06]} 42. Rxa6 {[%clk 0:01:35]}  Rxa6 {[%clk 0:00:06]} 43. Bxa6 {[%clk 0:01:36]}  Nc7 {[%clk 0:00:06]} 44. Bc4 {[%clk 0:01:36]}  Kd6 {[%clk 0:00:06]} 45. Kf3 {[%clk 0:01:36]}  Nd5 {[%clk 0:00:06]} 46. Bxd5 {[%clk 0:01:36]}  Kxd5 {[%clk 0:00:06]} 47. Kf4 {[%clk 0:01:37]}  Ke6 {[%clk 0:00:06]} 48. Kg5 {[%clk 0:01:37]}  Kd5 {[%clk 0:00:04]} 49. Kxg6 {[%clk 0:01:37]} 1-0


[Site "https://www.chess.com"]

[Event "Titled Tuesday Blitz June 20 Early 2023"]
[White "Martinez Alcantara, Jose Eduardo"]
[Black "Yuan, Qingyu"]
[WhiteFideId "3805662"]
[BlackFideId "8609772"]
[WhiteElo "2711"]
[BlackElo "2359"]
[Result "1-0"]
[Round "3"]
[TimeControl "180+2"]
[Date "2023.06.20"]
[WhiteClock "0:01:08"]
[BlackClock "0:00:06"]
[Board "5"]

1. e4 {[%clk 0:03:00]}  e5 {[%clk 0:03:00]} 2. Nf3 {[%clk 0:03:01]}  Nc6 {[%clk 0:03:00]} 3. Bb5 {[%clk 0:03:01]}  Nf6 {[%clk 0:03:01]} 4. d3 {[%clk 0:03:01]}  Bc5 {[%clk 0:03:01]} 5. O-O {[%clk 0:03:01]}  Nd4 {[%clk 0:03:01]} 6. Be3 {[%clk 0:03:01]}  Nxf3+ {[%clk 0:02:49]} 7. Qxf3 {[%clk 0:03:02]}  Bxe3 {[%clk 0:02:46]} 8. fxe3 {[%clk 0:03:03]}  O-O {[%clk 0:02:43]} 9. Bc4 {[%clk 0:03:02]}  d6 {[%clk 0:02:36]} 10. Nd2 {[%clk 0:03:02]}  Be6 {[%clk 0:02:34]} 11. h3 {[%clk 0:03:01]}  d5 {[%clk 0:02:23]} 12. exd5 {[%clk 0:02:58]}  Bxd5 {[%clk 0:02:19]} 13. Qg3 {[%clk 0:02:57]}  Re8 {[%clk 0:01:49]} 14. e4 {[%clk 0:02:22]}  Be6 {[%clk 0:01:32]} 15. Kh1 {[%clk 0:02:15]}  Nd7 {[%clk 0:01:28]} 16. Bxe6 {[%clk 0:02:10]}  Rxe6 {[%clk 0:01:28]} 17. Nc4 {[%clk 0:02:11]}  Rg6 {[%clk 0:01:18]} 18. Qh2 {[%clk 0:02:00]}  Qe8 {[%clk 0:01:09]} 19. Ne3 {[%clk 0:01:58]}  Rc6 {[%clk 0:01:04]} 20. Rf2 {[%clk 0:01:58]}  f6 {[%clk 0:01:03]} 21. Qg3 {[%clk 0:01:58]}  Nf8 {[%clk 0:01:00]} 22. Raf1 {[%clk 0:01:55]}  Kh8 {[%clk 0:00:57]} 23. Nd5 {[%clk 0:01:53]}  Rd8 {[%clk 0:00:54]} 24. Ne3 {[%clk 0:01:46]}  Re6 {[%clk 0:00:50]} 25. Nf5 {[%clk 0:01:46]}  Rd7 {[%clk 0:00:49]} 26. Qe3 {[%clk 0:01:46]}  Rb6 {[%clk 0:00:42]} 27. b3 {[%clk 0:01:45]}  Ne6 {[%clk 0:00:41]} 28. g3 {[%clk 0:01:39]}  Rc6 {[%clk 0:00:35]} 29. Kh2 {[%clk 0:01:38]}  Nd4 {[%clk 0:00:33]} 30. Nxd4 {[%clk 0:01:38]}  Rxd4 {[%clk 0:00:32]} 31. g4 {[%clk 0:01:38]}  h6 {[%clk 0:00:30]} 32. h4 {[%clk 0:01:38]}  Kh7 {[%clk 0:00:20]} 33. Rg1 {[%clk 0:01:38]}  g5 {[%clk 0:00:18]} 34. Rgf1 {[%clk 0:01:34]}  Kg7 {[%clk 0:00:18]} 35. Kg3 {[%clk 0:01:26]}  Rdd6 {[%clk 0:00:17]} 36. Qf3 {[%clk 0:01:21]}  Qd7 {[%clk 0:00:15]} 37. Kh2 {[%clk 0:01:17]}  Qe6 {[%clk 0:00:12]} 38. Kg2 {[%clk 0:01:17]}  Rd8 {[%clk 0:00:12]} 39. Rh1 {[%clk 0:01:17]}  Rh8 {[%clk 0:00:09]} 40. Rh3 {[%clk 0:01:17]}  Rd6 {[%clk 0:00:07]} 41. Kg3 {[%clk 0:01:13]}  c5 {[%clk 0:00:07]} 42. Rfh2 {[%clk 0:01:13]}  Rdd8 {[%clk 0:00:07]} 43. Rh1 {[%clk 0:01:06]}  b6 {[%clk 0:00:07]} 44. a4 {[%clk 0:01:06]}  Rb8 {[%clk 0:00:07]} 45. Qf2 {[%clk 0:01:04]}  Rbd8 {[%clk 0:00:07]} 46. a5 {[%clk 0:01:04]}  b5 {[%clk 0:00:07]} 47. Qxc5 {[%clk 0:01:01]}  Qd7 {[%clk 0:00:07]} 48. hxg5 {[%clk 0:00:59]}  hxg5 {[%clk 0:00:04]} 49. Rxh8 {[%clk 0:01:00]}  Rxh8 {[%clk 0:00:04]} 50. Rxh8 {[%clk 0:01:01]}  Kxh8 {[%clk 0:00:05]} 51. Qf8+ {[%clk 0:01:02]}  Kh7 {[%clk 0:00:05]} 52. Qxf6 {[%clk 0:01:02]}  Qd4 {[%clk 0:00:06]} 53. Qf7+ {[%clk 0:01:01]}  Kh8 {[%clk 0:00:05]} 54. Qh5+ {[%clk 0:01:02]}  Kg8 {[%clk 0:00:06]} 55. Qxg5+ {[%clk 0:01:03]}  Kf8 {[%clk 0:00:06]} 56. Qf5+ {[%clk 0:01:02]}  Ke7 {[%clk 0:00:06]} 57. Qf2 {[%clk 0:01:03]}  Qd7 {[%clk 0:00:05]} 58. g5 {[%clk 0:01:03]}  a6 {[%clk 0:00:04]} 59. Qf6+ {[%clk 0:01:03]}  Ke8 {[%clk 0:00:04]} 60. Qh8+ {[%clk 0:01:03]}  Ke7 {[%clk 0:00:05]} 61. Qh7+ {[%clk 0:01:04]}  Ke6 {[%clk 0:00:05]} 62. Qxd7+ {[%clk 0:01:05]}  Kxd7 {[%clk 0:00:06]} 63. Kh4 {[%clk 0:01:05]}  Ke8 {[%clk 0:00:06]} 64. Kh5 {[%clk 0:01:05]}  Kf8 {[%clk 0:00:07]} 65. Kh6 {[%clk 0:01:06]}  Kg8 {[%clk 0:00:07]} 66. Kg6 {[%clk 0:01:07]}  b4 {[%clk 0:00:07]} 67. Kh6 {[%clk 0:01:07]}  Kf7 {[%clk 0:00:06]} 68. Kh7 {[%clk 0:01:08]} 1-0


[Site "https://www.chess.com"]

[Event "Titled Tuesday Blitz June 20 Early 2023"]
[White "Rohith Krishna S"]
[Black "Sadhwani, Raunak"]
[WhiteFideId "46617051"]
[BlackFideId "35093487"]
[WhiteElo "2270"]
[BlackElo "2631"]
[Result "0-1"]
[Round "3"]
[TimeControl "180+2"]
[Date "2023.06.20"]
[WhiteClock "0:00:10"]
[BlackClock "0:00:05"]
[Board "6"]

1. d4 {[%clk 0:03:00]}  Nf6 {[%clk 0:03:00]} 2. c4 {[%clk 0:03:01]}  g6 {[%clk 0:03:00]} 3. Nc3 {[%clk 0:03:01]}  Bg7 {[%clk 0:03:01]} 4. Nf3 {[%clk 0:03:01]}  d6 {[%clk 0:03:02]} 5. g3 {[%clk 0:03:02]}  O-O {[%clk 0:03:02]} 6. Bg2 {[%clk 0:03:03]}  Nc6 {[%clk 0:03:02]} 7. d5 {[%clk 0:03:02]}  Na5 {[%clk 0:03:02]} 8. Nd2 {[%clk 0:03:03]}  c5 {[%clk 0:03:02]} 9. O-O {[%clk 0:03:04]}  a6 {[%clk 0:03:02]} 10. Qc2 {[%clk 0:03:04]}  Bd7 {[%clk 0:03:00]} 11. Rb1 {[%clk 0:03:03]}  b5 {[%clk 0:03:01]} 12. b3 {[%clk 0:03:04]}  Rb8 {[%clk 0:02:58]} 13. Bb2 {[%clk 0:03:04]}  e5 {[%clk 0:02:56]} 14. e4 {[%clk 0:03:01]}  bxc4 {[%clk 0:02:54]} 15. bxc4 {[%clk 0:03:01]}  Nh5 {[%clk 0:02:50]} 16. Ne2 {[%clk 0:02:44]}  Nb7 {[%clk 0:02:29]} 17. Bc3 {[%clk 0:02:40]}  Qc7 {[%clk 0:02:24]} 18. Rb2 {[%clk 0:02:39]}  Nd8 {[%clk 0:02:24]} 19. Rfb1 {[%clk 0:02:39]}  Ra8 {[%clk 0:02:14]} 20. Rb6 {[%clk 0:02:36]}  a5 {[%clk 0:02:14]} 21. f4 {[%clk 0:02:34]}  exf4 {[%clk 0:02:06]} 22. gxf4 {[%clk 0:02:31]}  Bxc3 {[%clk 0:01:46]} 23. Qxc3 {[%clk 0:02:30]}  Bg4 {[%clk 0:01:47]} 24. Bf3 {[%clk 0:02:23]}  Bxf3 {[%clk 0:01:43]} 25. Qxf3 {[%clk 0:02:17]}  f6 {[%clk 0:01:19]} 26. Ng3 {[%clk 0:02:12]}  Ng7 {[%clk 0:01:16]} 27. Qd3 {[%clk 0:01:57]}  Nf7 {[%clk 0:01:04]} 28. Rb7 {[%clk 0:01:56]}  Qc8 {[%clk 0:00:50]} 29. Kg2 {[%clk 0:01:43]}  Re8 {[%clk 0:00:44]} 30. Qc3 {[%clk 0:01:41]}  Qd8 {[%clk 0:00:43]} 31. Nf3 {[%clk 0:01:34]}  Re7 {[%clk 0:00:43]} 32. R7b6 {[%clk 0:01:19]}  Re8 {[%clk 0:00:40]} 33. Qb2 {[%clk 0:01:17]}  a4 {[%clk 0:00:25]} 34. Rb7 {[%clk 0:01:15]}  Re7 {[%clk 0:00:25]} 35. a3 {[%clk 0:01:12]}  Rxb7 {[%clk 0:00:22]} 36. Qxb7 {[%clk 0:01:13]}  Qe8 {[%clk 0:00:20]} 37. Rb6 {[%clk 0:01:09]}  Rd8 {[%clk 0:00:19]} 38. Rc6 {[%clk 0:01:07]}  f5 {[%clk 0:00:19]} 39. exf5 {[%clk 0:00:58]}  Nxf5 {[%clk 0:00:20]} 40. Nxf5 {[%clk 0:00:57]}  gxf5 {[%clk 0:00:21]} 41. Rc7 {[%clk 0:00:56]}  Rb8 {[%clk 0:00:21]} 42. Re7 {[%clk 0:00:49]}  Rxb7 {[%clk 0:00:20]} 43. Rxe8+ {[%clk 0:00:49]}  Kg7 {[%clk 0:00:21]} 44. Ra8 {[%clk 0:00:50]}  Rb2+ {[%clk 0:00:16]} 45. Kg3 {[%clk 0:00:50]}  Rb3 {[%clk 0:00:17]} 46. Rxa4 {[%clk 0:00:49]}  Rc3 {[%clk 0:00:18]} 47. Kf2 {[%clk 0:00:43]}  Nh6 {[%clk 0:00:18]} 48. h3 {[%clk 0:00:43]}  Ng8 {[%clk 0:00:18]} 49. Ra7+ {[%clk 0:00:42]}  Kg6 {[%clk 0:00:06]} 50. Ra6 {[%clk 0:00:40]}  Nf6 {[%clk 0:00:07]} 51. Rxd6 {[%clk 0:00:40]}  Kg7 {[%clk 0:00:08]} 52. Ng5 {[%clk 0:00:39]}  Rxc4 {[%clk 0:00:07]} 53. Rd8 {[%clk 0:00:34]}  Rxf4+ {[%clk 0:00:07]} 54. Kg3 {[%clk 0:00:35]}  Ra4 {[%clk 0:00:07]} 55. Ne6+ {[%clk 0:00:33]}  Kf7 {[%clk 0:00:04]} 56. Nf4 {[%clk 0:00:22]}  Rxa3+ {[%clk 0:00:03]} 57. Kh4 {[%clk 0:00:22]}  h6 {[%clk 0:00:02]} 58. Rc8 {[%clk 0:00:15]}  Ra4 {[%clk 0:00:03]} 59. Rc7+ {[%clk 0:00:15]}  Ke8 {[%clk 0:00:02]} 60. Rc6 {[%clk 0:00:11]}  Rxf4+ {[%clk 0:00:02]} 61. Kg3 {[%clk 0:00:12]}  Nxd5 {[%clk 0:00:03]} 62. Rxc5 {[%clk 0:00:12]}  Rd4 {[%clk 0:00:03]} 63. Rc6 {[%clk 0:00:12]}  Kf7 {[%clk 0:00:04]} 64. Rxh6 {[%clk 0:00:13]}  Nf6 {[%clk 0:00:04]} 65. Rh8 {[%clk 0:00:12]}  Kg7 {[%clk 0:00:05]} 66. Rc8 {[%clk 0:00:12]}  Nh5+ {[%clk 0:00:05]} 67. Kf3 {[%clk 0:00:12]}  Rd3+ {[%clk 0:00:05]} 68. Kg2 {[%clk 0:00:12]}  Nf4+ {[%clk 0:00:05]} 69. Kf2 {[%clk 0:00:13]}  Nxh3+ {[%clk 0:00:06]} 70. Kf1 {[%clk 0:00:13]}  Ng5 {[%clk 0:00:06]} 71. Rc6 {[%clk 0:00:13]}  Re3 {[%clk 0:00:05]} 72. Kf2 {[%clk 0:00:14]}  Re6 {[%clk 0:00:06]} 73. Rc5 {[%clk 0:00:10]}  Ne4+ {[%clk 0:00:05]} 0-1


[Site "https://www.chess.com"]

[Event "Titled Tuesday Blitz June 20 Early 2023"]
[White "Grischuk, Alexander"]
[Black "Amilal Munkhdalai"]
[WhiteFideId "4126025"]
[BlackFideId "4903250"]
[WhiteElo "2721"]
[BlackElo "2293"]
[Result "1-0"]
[Round "3"]
[TimeControl "180+2"]
[Date "2023.06.20"]
[WhiteClock "0:00:31"]
[BlackClock "0:00:31"]
[Board "9"]

1. Nf3 {[%clk 0:03:00]}  Nf6 {[%clk 0:02:59]} 2. g3 {[%clk 0:03:01]}  d5 {[%clk 0:02:57]} 3. Bg2 {[%clk 0:03:00]}  Bg4 {[%clk 0:02:57]} 4. O-O {[%clk 0:03:00]}  Nbd7 {[%clk 0:02:57]} 5. d4 {[%clk 0:02:59]}  c6 {[%clk 0:02:57]} 6. c4 {[%clk 0:02:58]}  e6 {[%clk 0:02:57]} 7. cxd5 {[%clk 0:02:56]}  exd5 {[%clk 0:02:56]} 8. h3 {[%clk 0:02:52]}  Bxf3 {[%clk 0:02:54]} 9. exf3 {[%clk 0:02:48]}  Be7 {[%clk 0:02:54]} 10. Nc3 {[%clk 0:02:47]}  O-O {[%clk 0:02:53]} 11. h4 {[%clk 0:02:47]}  Bd6 {[%clk 0:02:49]} 12. Qd3 {[%clk 0:02:44]}  Re8 {[%clk 0:02:48]} 13. Bh3 {[%clk 0:02:43]}  Qc7 {[%clk 0:02:46]} 14. Kg2 {[%clk 0:02:42]}  Nf8 {[%clk 0:02:37]} 15. Bg5 {[%clk 0:02:41]}  N6d7 {[%clk 0:02:32]} 16. Rac1 {[%clk 0:02:41]}  Qb8 {[%clk 0:02:28]} 17. Rfe1 {[%clk 0:02:28]}  h6 {[%clk 0:02:16]} 18. Bd2 {[%clk 0:02:22]}  Rxe1 {[%clk 0:02:14]} 19. Rxe1 {[%clk 0:02:22]}  Nf6 {[%clk 0:02:10]} 20. Nd1 {[%clk 0:02:19]}  a5 {[%clk 0:02:05]} 21. a3 {[%clk 0:02:17]}  a4 {[%clk 0:02:04]} 22. Ne3 {[%clk 0:02:16]}  Qc7 {[%clk 0:01:52]} 23. Nf5 {[%clk 0:02:16]}  Re8 {[%clk 0:01:49]} 24. Rxe8 {[%clk 0:02:10]}  Nxe8 {[%clk 0:01:49]} 25. Qc2 {[%clk 0:02:11]}  b5 {[%clk 0:01:45]} 26. Qd1 {[%clk 0:01:25]}  Nd7 {[%clk 0:01:38]} 27. Qe1 {[%clk 0:01:22]}  Kf8 {[%clk 0:01:32]} 28. Ba5 {[%clk 0:01:21]}  Nb6 {[%clk 0:01:11]} 29. Nxd6 {[%clk 0:01:05]}  Nxd6 {[%clk 0:01:10]} 30. Qb4 {[%clk 0:01:06]}  Kg8 {[%clk 0:00:57]} 31. Bxb6 {[%clk 0:01:05]}  Qxb6 {[%clk 0:00:55]} 32. Qxd6 {[%clk 0:01:05]}  Qxd4 {[%clk 0:00:56]} 33. h5 {[%clk 0:00:53]}  Qxb2 {[%clk 0:00:52]} 34. Bf5 {[%clk 0:00:51]}  g5 {[%clk 0:00:45]} 35. hxg6 {[%clk 0:00:51]}  fxg6 {[%clk 0:00:45]} 36. Qxg6+ {[%clk 0:00:39]}  Kf8 {[%clk 0:00:44]} 37. Qxh6+ {[%clk 0:00:38]}  Ke7 {[%clk 0:00:44]} 38. Qe6+ {[%clk 0:00:38]}  Kf8 {[%clk 0:00:44]} 39. Qd6+ {[%clk 0:00:36]}  Kf7 {[%clk 0:00:41]} 40. Be6+ {[%clk 0:00:35]}  Kg7 {[%clk 0:00:38]} 41. Qe7+ {[%clk 0:00:34]}  Kh6 {[%clk 0:00:38]} 42. f4 {[%clk 0:00:30]}  b4 {[%clk 0:00:33]} 43. Qg5+ {[%clk 0:00:29]}  Kh7 {[%clk 0:00:33]} 44. Bf5+ {[%clk 0:00:30]}  Kh8 {[%clk 0:00:31]} 45. Qh6+ {[%clk 0:00:31]} 1-0


[Site "https://www.chess.com"]

[Event "Titled Tuesday Blitz June 20 Early 2023"]
[White "Srihari L R"]
[Black "Paravyan, David"]
[WhiteFideId "46617116"]
[BlackFideId "4194985"]
[WhiteElo "2334"]
[BlackElo "2563"]
[Result "0-1"]
[Round "3"]
[TimeControl "180+2"]
[Date "2023.06.20"]
[WhiteClock "0:00:01"]
[BlackClock "0:01:35"]
[Board "10"]

1. d4 {[%clk 0:02:53]}  d5 {[%clk 0:02:58]} 2. c4 {[%clk 0:02:53]}  e6 {[%clk 0:02:59]} 3. Nc3 {[%clk 0:02:52]}  Nf6 {[%clk 0:02:59]} 4. Bg5 {[%clk 0:02:50]}  Be7 {[%clk 0:02:59]} 5. e3 {[%clk 0:02:50]}  h6 {[%clk 0:02:58]} 6. Bh4 {[%clk 0:02:50]}  O-O {[%clk 0:02:59]} 7. Qc2 {[%clk 0:02:50]}  c5 {[%clk 0:02:57]} 8. dxc5 {[%clk 0:02:49]}  dxc4 {[%clk 0:02:49]} 9. Bxc4 {[%clk 0:02:49]}  Qa5 {[%clk 0:02:49]} 10. Nf3 {[%clk 0:02:43]}  Qxc5 {[%clk 0:02:48]} 11. Be2 {[%clk 0:02:40]}  b6 {[%clk 0:02:46]} 12. O-O-O {[%clk 0:02:37]}  Bb7 {[%clk 0:02:44]} 13. Kb1 {[%clk 0:02:34]}  Nc6 {[%clk 0:02:41]} 14. a3 {[%clk 0:02:34]}  Rac8 {[%clk 0:02:36]} 15. Rhg1 {[%clk 0:02:25]}  Ne5 {[%clk 0:02:26]} 16. Nd4 {[%clk 0:02:18]}  Ne4 {[%clk 0:02:20]} 17. Bg3 {[%clk 0:00:42]}  Nxc3+ {[%clk 0:02:17]} 18. Qxc3 {[%clk 0:00:42]}  Qxc3 {[%clk 0:02:10]} 19. bxc3 {[%clk 0:00:43]}  Nc4 {[%clk 0:02:11]} 20. Bxc4 {[%clk 0:00:38]}  Rxc4 {[%clk 0:02:12]} 21. Kb2 {[%clk 0:00:38]}  Rfc8 {[%clk 0:02:10]} 22. Nb5 {[%clk 0:00:32]}  R8c5 {[%clk 0:02:05]} 23. Nd6 {[%clk 0:00:28]}  Bxd6 {[%clk 0:02:04]} 24. Bxd6 {[%clk 0:00:27]}  Rb5+ {[%clk 0:02:04]} 25. Ka2 {[%clk 0:00:21]}  Rxc3 {[%clk 0:02:03]} 26. Rc1 {[%clk 0:00:22]}  Bd5+ {[%clk 0:02:03]} 27. Ka1 {[%clk 0:00:22]}  Rbb3 {[%clk 0:01:57]} 28. Rxc3 {[%clk 0:00:21]}  Rxc3 {[%clk 0:01:57]} 29. Bb4 {[%clk 0:00:18]}  Rc2 {[%clk 0:01:57]} 30. f3 {[%clk 0:00:18]}  a5 {[%clk 0:01:57]} 31. Bd6 {[%clk 0:00:16]}  b5 {[%clk 0:01:54]} 32. e4 {[%clk 0:00:16]}  Bc4 {[%clk 0:01:55]} 33. h4 {[%clk 0:00:12]}  f6 {[%clk 0:01:55]} 34. g4 {[%clk 0:00:11]}  Rd2 {[%clk 0:01:52]} 35. e5 {[%clk 0:00:09]}  fxe5 {[%clk 0:01:52]} 36. Bxe5 {[%clk 0:00:10]}  Rd3 {[%clk 0:01:52]} 37. f4 {[%clk 0:00:07]}  Rxa3+ {[%clk 0:01:52]} 38. Kb2 {[%clk 0:00:07]}  Rb3+ {[%clk 0:01:52]} 39. Kc2 {[%clk 0:00:07]}  Rf3 {[%clk 0:01:51]} 40. h5 {[%clk 0:00:07]}  b4 {[%clk 0:01:51]} 41. g5 {[%clk 0:00:07]}  Rf2+ {[%clk 0:01:51]} 42. Kc1 {[%clk 0:00:06]}  Kf7 {[%clk 0:01:37]} 43. gxh6 {[%clk 0:00:05]}  gxh6 {[%clk 0:01:38]} 44. Rg7+ {[%clk 0:00:05]}  Ke8 {[%clk 0:01:37]} 45. Ra7 {[%clk 0:00:05]}  Ra2 {[%clk 0:01:36]} 46. Bd6 {[%clk 0:00:03]}  b3 {[%clk 0:01:36]} 47. Kb1 {[%clk 0:00:01]}  Bd3+ {[%clk 0:01:35]} 0-1


[Site "https://www.chess.com"]

[Event "Titled Tuesday Blitz June 20 Early 2023"]
[White "Sviridov, Valery"]
[Black "Fus, Jakub"]
[WhiteFideId "4120680"]
[BlackFideId "1193023"]
[WhiteElo "2457"]
[BlackElo "2335"]
[Result "1-0"]
[Round "3"]
[TimeControl "180+2"]
[Date "2023.06.20"]
[WhiteClock "0:00:47"]
[BlackClock "0:00:04"]
[Board "14"]

1. g3 {[%clk 0:02:30]}  d5 {[%clk 0:02:58]} 2. Bg2 {[%clk 0:02:29]}  c6 {[%clk 0:02:53]} 3. Nf3 {[%clk 0:02:28]}  Nf6 {[%clk 0:02:48]} 4. O-O {[%clk 0:02:28]}  Bg4 {[%clk 0:02:47]} 5. d4 {[%clk 0:02:28]}  Nbd7 {[%clk 0:02:42]} 6. Nbd2 {[%clk 0:02:29]}  e6 {[%clk 0:02:42]} 7. Re1 {[%clk 0:02:28]}  Be7 {[%clk 0:02:42]} 8. e4 {[%clk 0:02:24]}  O-O {[%clk 0:02:43]} 9. c3 {[%clk 0:02:24]}  a5 {[%clk 0:02:42]} 10. Qb3 {[%clk 0:02:23]}  dxe4 {[%clk 0:02:01]} 11. Nxe4 {[%clk 0:02:24]}  Nxe4 {[%clk 0:02:01]} 12. Rxe4 {[%clk 0:02:24]}  Nf6 {[%clk 0:02:02]} 13. Re1 {[%clk 0:02:24]}  Qd5 {[%clk 0:01:57]} 14. Ne5 {[%clk 0:02:13]}  Qxb3 {[%clk 0:01:56]} 15. axb3 {[%clk 0:02:14]}  Bf5 {[%clk 0:01:57]} 16. Nc4 {[%clk 0:02:11]}  Bc2 {[%clk 0:01:32]} 17. Bg5 {[%clk 0:01:39]}  a4 {[%clk 0:01:00]} 18. bxa4 {[%clk 0:01:09]}  Rxa4 {[%clk 0:00:58]} 19. Nb6 {[%clk 0:01:10]}  Rxa1 {[%clk 0:00:55]} 20. Rxa1 {[%clk 0:01:11]}  Nd5 {[%clk 0:00:49]} 21. Bxe7 {[%clk 0:01:08]}  Nxe7 {[%clk 0:00:50]} 22. Ra7 {[%clk 0:01:08]}  Nd5 {[%clk 0:00:42]} 23. Rxb7 {[%clk 0:01:02]}  g5 {[%clk 0:00:28]} 24. h3 {[%clk 0:01:00]}  Bd3 {[%clk 0:00:17]} 25. Bf1 {[%clk 0:00:55]}  Bxf1 {[%clk 0:00:13]} 26. Kxf1 {[%clk 0:00:56]}  Rd8 {[%clk 0:00:10]} 27. Nc4 {[%clk 0:00:51]}  Ra8 {[%clk 0:00:08]} 28. Ne5 {[%clk 0:00:50]}  Ra1+ {[%clk 0:00:07]} 29. Kg2 {[%clk 0:00:50]}  f6 {[%clk 0:00:08]} 30. Nxc6 {[%clk 0:00:50]}  Rd1 {[%clk 0:00:08]} 31. Ne7+ {[%clk 0:00:50]}  Nxe7 {[%clk 0:00:06]} 32. Rxe7 {[%clk 0:00:51]}  Re1 {[%clk 0:00:06]} 33. d5 {[%clk 0:00:50]}  e5 {[%clk 0:00:05]} 34. d6 {[%clk 0:00:47]}  Kf8 {[%clk 0:00:05]} 35. c4 {[%clk 0:00:47]}  Rd1 {[%clk 0:00:06]} 36. c5 {[%clk 0:00:47]}  Rd5 {[%clk 0:00:05]} 37. b4 {[%clk 0:00:47]}  Rxd6 {[%clk 0:00:04]} 38. cxd6 {[%clk 0:00:47]} 1-0


[Site "https://www.chess.com"]

[Event "Titled Tuesday Blitz June 20 Early 2023"]
[White "Gordievsky, Dmitry"]
[Black "Petrosian, Karlen"]
[WhiteFideId "24112798"]
[BlackFideId "4176146"]
[WhiteElo "2546"]
[BlackElo "2345"]
[Result "1-0"]
[Round "3"]
[TimeControl "180+2"]
[Date "2023.06.20"]
[WhiteClock "0:00:04"]
[BlackClock "0:00:17"]
[Board "16"]

1. Nf3 {[%clk 0:03:00]}  Nf6 {[%clk 0:02:56]} 2. c4 {[%clk 0:03:01]}  g6 {[%clk 0:02:55]} 3. d4 {[%clk 0:03:01]}  d6 {[%clk 0:02:55]} 4. g3 {[%clk 0:03:01]}  Bg7 {[%clk 0:02:54]} 5. Nc3 {[%clk 0:03:02]}  Bf5 {[%clk 0:02:54]} 6. Bg2 {[%clk 0:03:01]}  Ne4 {[%clk 0:02:55]} 7. Qb3 {[%clk 0:03:01]}  Nxc3 {[%clk 0:02:55]} 8. bxc3 {[%clk 0:03:00]}  Be4 {[%clk 0:02:55]} 9. O-O {[%clk 0:02:51]}  O-O {[%clk 0:02:54]} 10. Bh3 {[%clk 0:02:50]}  b6 {[%clk 0:02:53]} 11. Nd2 {[%clk 0:02:46]}  Bb7 {[%clk 0:02:52]} 12. e4 {[%clk 0:02:44]}  Nc6 {[%clk 0:02:52]} 13. Re1 {[%clk 0:02:23]}  Na5 {[%clk 0:02:49]} 14. Qc2 {[%clk 0:02:23]}  c5 {[%clk 0:02:49]} 15. d5 {[%clk 0:02:23]}  Ba6 {[%clk 0:02:39]} 16. Bf1 {[%clk 0:02:23]}  e6 {[%clk 0:02:33]} 17. a4 {[%clk 0:02:19]}  Qf6 {[%clk 0:02:13]} 18. Bb2 {[%clk 0:02:15]}  Rae8 {[%clk 0:02:09]} 19. Rad1 {[%clk 0:02:14]}  Qd8 {[%clk 0:01:50]} 20. Bc1 {[%clk 0:02:06]}  Qd7 {[%clk 0:01:45]} 21. Bd3 {[%clk 0:01:35]}  e5 {[%clk 0:01:37]} 22. Bf1 {[%clk 0:01:33]}  h5 {[%clk 0:01:34]} 23. Qa2 {[%clk 0:01:26]}  f5 {[%clk 0:01:24]} 24. Nf3 {[%clk 0:01:19]}  Bf6 {[%clk 0:01:11]} 25. exf5 {[%clk 0:01:05]}  Qxf5 {[%clk 0:01:06]} 26. Nd2 {[%clk 0:00:51]}  Bg5 {[%clk 0:00:45]} 27. Ne4 {[%clk 0:00:44]}  Bxc1 {[%clk 0:00:45]} 28. Rxc1 {[%clk 0:00:29]}  Rd8 {[%clk 0:00:42]} 29. Bd3 {[%clk 0:00:29]}  Qg4 {[%clk 0:00:36]} 30. Re3 {[%clk 0:00:18]}  Kg7 {[%clk 0:00:34]} 31. h4 {[%clk 0:00:18]}  Bc8 {[%clk 0:00:22]} 32. Ng5 {[%clk 0:00:18]}  Rf6 {[%clk 0:00:18]} 33. Rce1 {[%clk 0:00:16]}  Rdf8 {[%clk 0:00:18]} 34. R1e2 {[%clk 0:00:15]}  Kg8 {[%clk 0:00:18]} 35. Qc2 {[%clk 0:00:13]}  Ba6 {[%clk 0:00:17]} 36. Bxg6 {[%clk 0:00:12]}  Bxc4 {[%clk 0:00:18]} 37. Bd3 {[%clk 0:00:06]}  Bxd5 {[%clk 0:00:18]} 38. Bc4 {[%clk 0:00:04]}  Nxc4 {[%clk 0:00:17]} 39. Qh7# {[%clk 0:00:04]} 1-0


[Site "https://www.chess.com"]